[Event "18èmeFestival International d’Echecsde Rochefort"]
[Site "Rochefort, France"]
[Date "2019.02.18"]
[Round "4.3"]
[White "COLIN, Vincent"]
[Black "VAN DEN DOEL, Erik"]
[Result "0-1"]
[TimeControl "1h30 min/40coups + 30 min +  30sec/coup"]
[WhiteTitle "IM"]
[BlackTitle "GM"]
[WhiteFideId "612324"]
[BlackFideId "1003720"]
[WhiteElo "2382"]
[BlackElo "2611"]

1. e4 {[%clk 01:29:49]} {[%emt 00:01:10]} c5 {[%clk 01:30:53]} {[%emt
00:00:07]} 2. Nf3 {[%clk 01:30:13]} {[%emt 00:00:06]} d6 {[%clk 01:31:18]}
{[%emt 00:00:05]} 3. d4 {[%clk 01:30:36]} {[%emt 00:00:07]} cxd4 {[%clk
01:31:45]} {[%emt 00:00:04]} 4. Nxd4 {[%clk 01:31:00]} {[%emt 00:00:06]} Nf6
{[%clk 01:32:10]} {[%emt 00:00:04]} 5. Nc3 {[%clk 01:31:24]} {[%emt 00:00:06]}
a6 {[%clk 01:32:38]} {[%emt 00:00:03]} 6. Nb3 {[%clk 01:31:34]} {[%emt
00:00:21]} e6 {[%clk 01:09:02]} {[%emt 00:24:05]} 7. g4 {[%clk 01:30:40]}
{[%emt 00:01:23]} h6 {[%clk 01:08:44]} {[%emt 00:00:49]} 8. Bg2 {[%clk
01:28:42]} {[%emt 00:02:26]} Nc6 {[%clk 01:08:19]} {[%emt 00:00:55]} 9. O-O
{[%clk 01:22:13]} {[%emt 00:06:59]} e5 {[%clk 01:00:13]} {[%emt 00:08:37]} 10.
h3 {[%clk 01:19:22]} {[%emt 00:03:20]} Be6 {[%clk 01:00:03]} {[%emt 00:00:41]}
11. Nd5 {[%clk 01:17:41]} {[%emt 00:02:11]} Rc8 {[%clk 00:57:01]} {[%emt
00:03:32]} 12. f4 {[%clk 01:15:20]} {[%emt 00:02:51]} exf4 {[%clk 00:57:02]}
{[%emt 00:00:29]} 13. Bxf4 {[%clk 01:15:04]} {[%emt 00:00:45]} Bxd5 {[%clk
00:56:49]} {[%emt 00:00:44]} 14. exd5 {[%clk 01:15:16]} {[%emt 00:00:17]} Ne5
{[%clk 00:57:09]} {[%emt 00:00:10]} 15. Nd4 {[%clk 01:12:45]} {[%emt 00:03:01]}
g6 {[%clk 00:46:15]} {[%emt 00:11:25]} 16. b3 {[%clk 01:08:48]} {[%emt
00:04:27]} Bg7 {[%clk 00:42:57]} {[%emt 00:03:48]} 17. Qd2 {[%clk 01:07:56]}
{[%emt 00:01:22]} h5 {[%clk 00:38:10]} {[%emt 00:05:17]} 18. g5 {[%clk
01:04:17]} {[%emt 00:04:08]} Nfd7 {[%clk 00:38:21]} {[%emt 00:00:18]} 19. Ne6
{[%clk 01:04:20]} {[%emt 00:00:27]} fxe6 {[%clk 00:37:13]} {[%emt 00:01:39]} 20.
dxe6 {[%clk 01:04:39]} {[%emt 00:00:11]} Nc5 {[%clk 00:28:51]} {[%emt
00:08:53]} 21. Bd5 {[%clk 00:58:59]} {[%emt 00:06:09]} Qe7 {[%clk 00:26:27]}
{[%emt 00:02:54]} 22. Bxe5 {[%clk 00:54:37]} {[%emt 00:04:52]} Bxe5 {[%clk
00:26:41]} {[%emt 00:00:16]} 23. Rf7 {[%clk 00:54:58]} {[%emt 00:00:09]} Bxa1
{[%clk 00:26:59]} {[%emt 00:00:12]} 24. Rxe7+ {[%clk 00:51:19]} {[%emt
00:04:09]} Kxe7 {[%clk 00:26:54]} {[%emt 00:00:35]} 25. c3 {[%clk 00:51:43]}
{[%emt 00:00:06]} Rcf8 {[%clk 00:15:23]} {[%emt 00:12:01]} 26. Qd4 {[%clk
00:49:50]} {[%emt 00:02:22]} Rh7 {[%clk 00:14:27]} {[%emt 00:01:27]} 27. b4
{[%clk 00:49:37]} {[%emt 00:00:44]} Nxe6 {[%clk 00:11:36]} {[%emt 00:03:21]} 28.
Qe4 {[%clk 00:44:49]} {[%emt 00:05:16]} Kd8 {[%clk 00:11:41]} {[%emt 00:00:26]}
29. Qxe6 {[%clk 00:45:04]} {[%emt 00:00:15]} Kc7 {[%clk 00:11:53]} {[%emt
00:00:18]} 30. Qxg6 {[%clk 00:39:28]} {[%emt 00:06:06]} Re7 {[%clk 00:12:11]}
{[%emt 00:00:12]} 31. Qd3 {[%clk 00:39:26]} {[%emt 00:00:32]} Kb8 {[%clk
00:09:12]} {[%emt 00:03:30]} 32. g6 {[%clk 00:29:14]} {[%emt 00:10:42]} Rc7
{[%clk 00:08:29]} {[%emt 00:01:13]} 33. Bf7 {[%clk 00:26:28]} {[%emt 00:03:16]}
Bxc3 {[%clk 00:08:11]} {[%emt 00:00:49]} 34. Qxd6 {[%clk 00:26:51]} {[%emt
00:00:06]} Rfc8 {[%clk 00:07:45]} {[%emt 00:00:56]} 35. Be6 {[%clk 00:24:03]}
{[%emt 00:03:17]} Re8 {[%clk 00:07:14]} {[%emt 00:01:01]} 36. a3 {[%clk
00:19:06]} {[%emt 00:05:28]} Bf6 {[%clk 00:07:39]} {[%emt 00:00:05]} 37. Kg2
{[%clk 00:16:48]} {[%emt 00:02:48]} Rd8 {[%clk 00:07:39]} {[%emt 00:00:30]} 38.
Qf4 {[%clk 00:17:04]} {[%emt 00:00:13]} Bg7 {[%clk 00:06:29]} {[%emt 00:01:40]}
39. Bf5 {[%clk 00:06:29]} {[%emt 00:11:05]} Rd4 {[%clk 00:05:37]} {[%emt
00:01:22]} 40. Be4 {[%clk 00:06:03]} {[%emt 00:00:56]} Rdc4 {[%clk 00:03:00]}
{[%emt 00:03:07]} 41. Qf5 {[%clk 00:26:33]} {[%emt 00:09:59]} Re7 {[%clk
00:25:09]} {[%emt 00:08:22]} 42. Bd3 {[%clk 00:22:50]} {[%emt 00:04:12]} Rd4
{[%clk 00:19:27]} {[%emt 00:06:12]} 43. Kf2 {[%clk 00:18:19]} {[%emt 00:05:01]}
h4 {[%clk 00:15:41]} {[%emt 00:04:16]} 44. Be2 {[%clk 00:10:28]} {[%emt
00:08:21]} Rd6 {[%clk 00:08:01]} {[%emt 00:08:10]} 45. Qf4 {[%clk 00:10:28]}
{[%emt 00:00:29]} Ree6 {[%clk 00:06:04]} {[%emt 00:02:27]} 46. Bd3 {[%clk
00:09:33]} {[%emt 00:01:26]} Rf6 {[%clk 00:06:27]} {[%emt 00:00:07]} 47. Bf5
{[%clk 00:08:18]} {[%emt 00:01:45]} Rxf5 {[%clk 00:06:52]} {[%emt 00:00:05]} 48.
Qxf5 {[%clk 00:08:42]} {[%emt 00:00:06]} Rf6 {[%clk 00:07:20]} {[%emt
00:00:02]} 49. Qxf6 {[%clk 00:09:03]} {[%emt 00:00:09]} Bxf6 {[%clk 00:07:46]}
{[%emt 00:00:04]} 50. Kf3 {[%clk 00:09:26]} {[%emt 00:00:07]} Kc7 {[%clk
00:08:10]} {[%emt 00:00:06]} 51. Kg4 {[%clk 00:09:43]} {[%emt 00:00:14]} Kd6
{[%clk 00:07:59]} {[%emt 00:00:41]} 52. Kh5 {[%clk 00:09:52]} {[%emt 00:00:21]}
Ke5 {[%clk 00:07:28]} {[%emt 00:01:01]} 0-1



[ePGN "0.1;DGT LiveChess/2.2.3"]

[Event "18èmeFestival International d’Echecsde Rochefort"]
[Site "Rochefort, France"]
[Date "2019.02.19"]
[Round "5.1"]
[White "VAN DEN DOEL, Erik"]
[Black "GASCON DEL NOGAL, Jose Rafael"]
[Result "1/2-1/2"]
[TimeControl "1h30 min/40coups + 30 min +  30sec/coup"]
[WhiteTitle "GM"]
[BlackTitle "GM"]
[WhiteFideId "1003720"]
[BlackFideId "3902463"]
[WhiteElo "2611"]
[BlackElo "2457"]

1. d4 {[%clk 01:30:56]} {[%emt 00:00:03]} Nf6 {[%clk 01:26:33]} {[%emt
00:04:27]} 2. Nf3 {[%clk 01:31:18]} {[%emt 00:00:08]} e6 {[%clk 01:26:58]}
{[%emt 00:00:06]} 3. Bf4 {[%clk 01:30:42]} {[%emt 00:01:06]} c5 {[%clk
01:27:16]} {[%emt 00:00:12]} 4. e3 {[%clk 01:31:07]} {[%emt 00:00:05]} d5
{[%clk 01:27:41]} {[%emt 00:00:05]} 5. Nbd2 {[%clk 01:31:15]} {[%emt 00:00:23]}
Nc6 {[%clk 01:28:04]} {[%emt 00:00:07]} 6. c3 {[%clk 01:31:41]} {[%emt
00:00:04]} cxd4 {[%clk 01:28:30]} {[%emt 00:00:04]} 7. exd4 {[%clk 01:32:00]}
{[%emt 00:00:11]} Nh5 {[%clk 01:28:44]} {[%emt 00:00:16]} 8. Bg5 {[%clk
01:20:05]} {[%emt 00:12:25]} f6 {[%clk 01:29:08]} {[%emt 00:00:06]} 9. Be3
{[%clk 01:20:31]} {[%emt 00:00:04]} Bd6 {[%clk 01:29:33]} {[%emt 00:00:05]} 10.
g3 {[%clk 01:20:10]} {[%emt 00:00:52]} O-O {[%clk 01:29:56]} {[%emt 00:00:07]}
11. Bd3 {[%clk 01:20:37]} {[%emt 00:00:04]} f5 {[%clk 01:21:26]} {[%emt
00:08:59]} 12. Ne5 {[%clk 01:20:04]} {[%emt 00:01:03]} Nf6 {[%clk 01:21:32]}
{[%emt 00:00:23]} 13. Ndf3 {[%clk 01:04:11]} {[%emt 00:16:24]} Bd7 {[%clk
01:19:16]} {[%emt 00:02:45]} 14. Bf4 {[%clk 01:03:21]} {[%emt 00:01:20]} Be8
{[%clk 01:17:40]} {[%emt 00:02:06]} 15. Qe2 {[%clk 01:01:55]} {[%emt 00:01:57]}
Ne4 {[%clk 01:10:59]} {[%emt 00:07:11]} 16. Qe3 {[%clk 00:50:04]} {[%emt
00:12:22]} Bh5 {[%clk 00:44:04]} {[%emt 00:27:23]} 17. Nxc6 {[%clk 00:30:40]}
{[%emt 00:19:53]} bxc6 {[%clk 00:44:27]} {[%emt 00:00:08]} 18. Bxd6 {[%clk
00:30:27]} {[%emt 00:00:44]} Qxd6 {[%clk 00:44:52]} {[%emt 00:00:05]} 19. Ne5
{[%clk 00:30:50]} {[%emt 00:00:07]} Rab8 {[%clk 00:45:02]} {[%emt 00:00:20]} 20.
Rb1 {[%clk 00:30:07]} {[%emt 00:01:13]} c5 {[%clk 00:43:30]} {[%emt 00:02:01]}
21. O-O {[%clk 00:30:24]} {[%emt 00:00:14]} cxd4 {[%clk 00:36:07]} {[%emt
00:07:53]} 22. cxd4 {[%clk 00:30:23]} {[%emt 00:00:31]} Rfc8 {[%clk 00:35:30]}
{[%emt 00:01:08]} 23. Rfc1 {[%clk 00:28:42]} {[%emt 00:02:11]} Rxc1+ {[%clk
00:35:36]} {[%emt 00:00:23]} 24. Rxc1 {[%clk 00:28:40]} {[%emt 00:00:32]} Be8
{[%clk 00:35:07]} {[%emt 00:00:58]} 25. Rc2 {[%clk 00:27:14]} {[%emt 00:01:57]}
h6 {[%clk 00:35:22]} {[%emt 00:00:15]} 26. f3 {[%clk 00:23:14]} {[%emt
00:04:31]} Nf6 {[%clk 00:35:43]} {[%emt 00:00:08]} 27. g4 {[%clk 00:22:22]}
{[%emt 00:01:23]} fxg4 {[%clk 00:32:56]} {[%emt 00:03:17]} 28. fxg4 {[%clk
00:22:47]} {[%emt 00:00:05]} Rd8 {[%clk 00:32:37]} {[%emt 00:00:50]} 29. h4
{[%clk 00:20:49]} {[%emt 00:02:27]} Ne4 {[%clk 00:32:42]} {[%emt 00:00:25]} 30.
g5 {[%clk 00:20:02]} {[%emt 00:01:18]} h5 {[%clk 00:25:27]} {[%emt 00:07:45]}
31. Kg2 {[%clk 00:12:31]} {[%emt 00:08:02]} Qb4 {[%clk 00:15:30]} {[%emt
00:10:26]} 32. g6 {[%clk 00:09:17]} {[%emt 00:03:44]} Nf6 {[%clk 00:12:23]}
{[%emt 00:03:37]} 33. Nf3 {[%clk 00:08:44]} {[%emt 00:01:03]} Bd7 {[%clk
00:10:52]} {[%emt 00:02:01]} 34. Ne5 {[%clk 00:09:09]} {[%emt 00:00:04]} Be8
{[%clk 00:09:25]} {[%emt 00:01:57]} 35. Rf2 {[%clk 00:07:20]} {[%emt 00:02:19]}
Qe7 {[%clk 00:07:06]} {[%emt 00:02:49]} 36. Rc2 {[%clk 00:06:10]} {[%emt
00:01:41]} Qb4 {[%emt 00:03:37]} 1/2-1/2

[Event "18èmeFestival International d’Echecsde Rochefort"]
[Site "Rochefort, France"]
[Date "2019.02.19"]
[Round "5.4"]
[White "ZENG, Chongsheng"]
[Black "DESLANDES, Pascal"]
[Result "1-0"]
[TimeControl "1h30 min/40coups + 30 min +  30sec/coup"]
[WhiteTitle "GM"]
[BlackTitle "FM"]
[WhiteFideId "8603847"]
[BlackFideId "605239"]
[WhiteElo "2544"]
[BlackElo "2349"]

1. e4 {[%clk 01:30:50]} {[%emt 00:00:06]} e6 {[%clk 01:30:52]} {[%emt
00:00:13]} 2. d4 {[%clk 01:31:05]} {[%emt 00:00:14]} d5 {[%clk 01:31:15]}
{[%emt 00:00:07]} 3. Nc3 {[%clk 01:31:27]} {[%emt 00:00:08]} Bb4 {[%clk
01:31:33]} {[%emt 00:00:11]} 4. e5 {[%clk 01:31:51]} {[%emt 00:00:07]} c5
{[%clk 01:31:51]} {[%emt 00:00:11]} 5. a3 {[%clk 01:32:16]} {[%emt 00:00:05]}
Bxc3+ {[%clk 01:32:11]} {[%emt 00:00:10]} 6. bxc3 {[%clk 01:32:41]} {[%emt
00:00:05]} Ne7 {[%clk 01:32:31]} {[%emt 00:00:10]} 7. Qg4 {[%clk 01:33:06]}
{[%emt 00:00:05]} cxd4 {[%clk 01:32:43]} {[%emt 00:00:18]} 8. Bd3 {[%clk
01:33:28]} {[%emt 00:00:08]} Qa5 {[%clk 01:31:40]} {[%emt 00:01:33]} 9. Ne2
{[%clk 01:33:46]} {[%emt 00:00:12]} O-O {[%clk 01:31:31]} {[%emt 00:00:38]} 10.
Bg5 {[%clk 01:33:52]} {[%emt 00:00:24]} Ng6 {[%clk 01:30:34]} {[%emt 00:01:28]}
11. Qg3 {[%clk 01:34:03]} {[%emt 00:00:19]} Nd7 {[%clk 01:29:14]} {[%emt
00:01:50]} 12. h4 {[%clk 01:34:04]} {[%emt 00:00:30]} dxc3 {[%clk 01:26:43]}
{[%emt 00:03:01]} 13. f4 {[%clk 01:18:49]} {[%emt 00:15:45]} f5 {[%clk
01:21:50]} {[%emt 00:05:22]} 14. exf6 {[%clk 01:16:13]} {[%emt 00:03:06]} Nxf6
{[%clk 01:22:02]} {[%emt 00:00:18]} 15. h5 {[%clk 01:15:29]} {[%emt 00:01:14]}
Nh8 {[%clk 01:21:38]} {[%emt 00:00:54]} 16. h6 {[%clk 01:09:41]} {[%emt
00:06:19]} g6 {[%clk 01:21:12]} {[%emt 00:00:56]} 17. Qh4 {[%clk 01:04:40]}
{[%emt 00:05:32]} Nd7 {[%clk 01:05:32]} {[%emt 00:16:09]} 18. Be7 {[%clk
01:05:00]} {[%emt 00:00:11]} Rf7 {[%clk 01:04:56]} {[%emt 00:01:06]} 19. Bb4
{[%clk 01:03:04]} {[%emt 00:02:26]} Qb6 {[%clk 00:54:34]} {[%emt 00:10:52]} 20.
Bxc3 {[%clk 01:01:50]} {[%emt 00:01:44]} Nc5 {[%clk 00:52:55]} {[%emt
00:02:09]} 21. Qg5 {[%clk 00:49:23]} {[%emt 00:12:56]} Nxd3+ {[%clk 00:49:34]}
{[%emt 00:03:52]} 22. cxd3 {[%clk 00:49:51]} {[%emt 00:00:03]} Rf5 {[%clk
00:49:43]} {[%emt 00:00:21]} 23. Qe7 {[%clk 00:50:18]} {[%emt 00:00:02]} Rf7
{[%clk 00:49:57]} {[%emt 00:00:15]} 24. Qb4 {[%clk 00:50:29]} {[%emt 00:00:20]}
Qxb4 {[%clk 00:37:41]} {[%emt 00:12:46]} 25. axb4 {[%clk 00:50:58]} {[%emt
00:00:02]} Bd7 {[%clk 00:35:56]} {[%emt 00:02:15]} 26. Kd2 {[%clk 00:50:46]}
{[%emt 00:00:42]} a6 {[%clk 00:35:27]} {[%emt 00:00:58]} 27. Rac1 {[%clk
00:50:38]} {[%emt 00:00:39]} Bc6 {[%clk 00:32:47]} {[%emt 00:03:10]} 28. Be5
{[%clk 00:50:37]} {[%emt 00:00:31]} g5 {[%clk 00:32:07]} {[%emt 00:01:10]} 29.
Rh5 {[%clk 00:50:30]} {[%emt 00:00:37]} gxf4 {[%clk 00:31:09]} {[%emt
00:01:28]} 30. Rg5+ {[%clk 00:45:29]} {[%emt 00:05:31]} Ng6 {[%clk 00:31:27]}
{[%emt 00:00:12]} 31. Nxf4 {[%clk 00:45:53]} {[%emt 00:00:06]} Rf5 {[%clk
00:28:25]} {[%emt 00:03:31]} 32. Rxf5 {[%clk 00:46:13]} {[%emt 00:00:11]} exf5
{[%clk 00:28:49]} {[%emt 00:00:05]} 33. Nxg6 {[%clk 00:46:37]} {[%emt
00:00:07]} Re8 {[%clk 00:29:09]} {[%emt 00:00:10]} 34. Rh1 {[%clk 00:40:03]}
{[%emt 00:07:04]} Re6 {[%clk 00:28:26]} {[%emt 00:01:12]} 35. Nf4 {[%clk
00:40:17]} {[%emt 00:00:16]} Rxe5 {[%clk 00:28:46]} {[%emt 00:00:11]} 36. Rh5
{[%clk 00:40:46]} {[%emt 00:00:01]} Be8 {[%clk 00:21:05]} {[%emt 00:08:10]} 37.
Rg5+ {[%clk 00:40:00]} {[%emt 00:01:17]} Bg6 {[%clk 00:21:11]} {[%emt
00:00:24]} 38. Nxg6 {[%clk 00:39:51]} {[%emt 00:00:39]} hxg6 {[%clk 00:21:33]}
{[%emt 00:00:07]} 39. Rxg6+ {[%clk 00:40:19]} {[%emt 00:00:03]} Kh7 {[%clk
00:21:23]} {[%emt 00:00:40]} 40. Rb6 {[%clk 00:40:33]} {[%emt 00:00:16]} f4
{[%clk 00:14:37]} {[%emt 00:07:16]} 41. Rxb7+ {[%clk 00:34:19]} {[%emt
00:06:45]} Kxh6 {[%clk 00:14:58]} {[%emt 00:00:08]} 42. Rf7 {[%clk 00:25:13]}
{[%emt 00:09:35]} Kg5 {[%clk 00:13:42]} {[%emt 00:01:46]} 43. Kc3 {[%clk
00:25:06]} {[%emt 00:00:38]} Re2 {[%clk 00:12:42]} {[%emt 00:01:30]} 44. Kd4
{[%clk 00:24:19]} {[%emt 00:01:17]} Rb2 {[%clk 00:08:12]} {[%emt 00:05:00]} 45.
Kc5 {[%clk 00:24:01]} {[%emt 00:00:48]} d4 {[%clk 00:05:27]} {[%emt 00:03:15]}
46. Kc4 {[%clk 00:23:34]} {[%emt 00:00:58]} Kg4 {[%clk 00:05:25]} {[%emt
00:00:31]} 47. Rg7 {[%clk 00:23:55]} {[%emt 00:00:09]} Kf5 {[%clk 00:05:36]}
{[%emt 00:00:18]} 48. g4+ {[%clk 00:20:56]} {[%emt 00:03:29]} fxg3 {[%clk
00:19:56]} {[%emt 00:16:10]} 49. Rxg3 {[%clk 00:51:17]} {[%emt 00:00:09]} Ra2
{[%clk 00:14:01]} {[%emt 00:06:26]} 50. Kxd4 {[%clk 00:49:29]} {[%emt
00:02:18]} Ke6 {[%clk 00:14:22]} {[%emt 00:00:08]} 51. Rg5 {[%clk 00:48:47]}
{[%emt 00:01:12]} Kd7 {[%clk 00:12:16]} {[%emt 00:02:36]} 52. Ra5 {[%clk
00:48:40]} {[%emt 00:00:37]} 1-0

[Event "18èmeFestival International d’Echecsde Rochefort"]
[Site "Rochefort, France"]
[Date "2019.02.19"]
[Round "5.5"]
[White "DEVALLEE, Jeremie"]
[Black "DEMUTH, Adrien"]
[Result "0-1"]
[TimeControl "1h30 min/40coups + 30 min +  30sec/coup"]
[WhiteTitle "FM"]
[BlackTitle "GM"]
[WhiteFideId "665240"]
[BlackFideId "642274"]
[WhiteElo "2317"]
[BlackElo "2519"]

1. e4 {[%clk 01:19:57]} {[%emt 00:11:02]} c5 {[%clk 01:30:40]} {[%emt
00:00:20]} 2. d4 {[%clk 01:20:01]} {[%emt 00:00:26]} cxd4 {[%clk 01:31:04]}
{[%emt 00:00:07]} 3. c3 {[%clk 01:20:27]} {[%emt 00:00:03]} dxc3 {[%clk
01:31:19]} {[%emt 00:00:15]} 4. Nxc3 {[%clk 01:20:54]} {[%emt 00:00:02]} Nc6
{[%clk 01:31:40]} {[%emt 00:00:10]} 5. Nf3 {[%clk 01:21:20]} {[%emt 00:00:03]}
d6 {[%clk 01:31:57]} {[%emt 00:00:12]} 6. Bc4 {[%clk 01:21:46]} {[%emt
00:00:06]} a6 {[%clk 01:31:51]} {[%emt 00:00:37]} 7. O-O {[%clk 01:21:23]}
{[%emt 00:00:52]} Nf6 {[%clk 01:32:15]} {[%emt 00:00:05]} 8. Bf4 {[%clk
01:21:40]} {[%emt 00:00:13]} e6 {[%clk 01:32:16]} {[%emt 00:00:30]} 9. Qe2
{[%clk 01:22:05]} {[%emt 00:00:05]} Nh5 {[%clk 01:32:32]} {[%emt 00:00:13]} 10.
Be3 {[%clk 01:20:58]} {[%emt 00:01:36]} Be7 {[%clk 01:32:18]} {[%emt 00:00:45]}
11. Bb3 {[%clk 01:08:09]} {[%emt 00:13:19]} Bd7 {[%clk 01:13:48]} {[%emt
00:19:01]} 12. Na4 {[%clk 01:04:31]} {[%emt 00:04:07]} Nf6 {[%clk 01:05:52]}
{[%emt 00:08:27]} 13. Bb6 {[%clk 00:50:05]} {[%emt 00:14:56]} Qb8 {[%clk
01:04:04]} {[%emt 00:02:18]} 14. Rfd1 {[%clk 00:49:03]} {[%emt 00:01:32]} O-O
{[%clk 01:02:49]} {[%emt 00:01:45]} 15. Rac1 {[%clk 00:47:19]} {[%emt
00:02:13]} Qe8 {[%clk 01:02:36]} {[%emt 00:00:43]} 16. Bc7 {[%clk 00:44:52]}
{[%emt 00:02:57]} Rc8 {[%clk 01:01:37]} {[%emt 00:01:30]} 17. Bb6 {[%clk
00:37:27]} {[%emt 00:07:56]} Ne5 {[%clk 00:50:11]} {[%emt 00:11:55]} 18. Nc3
{[%clk 00:33:55]} {[%emt 00:04:01]} Nxf3+ {[%clk 00:43:37]} {[%emt 00:07:04]}
19. Qxf3 {[%clk 00:34:20]} {[%emt 00:00:05]} Bc6 {[%clk 00:43:56]} {[%emt
00:00:13]} 20. Qe2 {[%clk 00:29:34]} {[%emt 00:05:15]} Nd7 {[%clk 00:42:05]}
{[%emt 00:02:21]} 21. Be3 {[%clk 00:29:45]} {[%emt 00:00:19]} Nc5 {[%clk
00:38:19]} {[%emt 00:04:17]} 22. Bc2 {[%clk 00:30:12]} {[%emt 00:00:03]} b5
{[%clk 00:29:18]} {[%emt 00:09:31]} 23. b4 {[%clk 00:26:11]} {[%emt 00:04:31]}
Nd7 {[%clk 00:29:30]} {[%emt 00:00:18]} 24. f4 {[%clk 00:25:17]} {[%emt
00:01:25]} e5 {[%clk 00:18:56]} {[%emt 00:11:05]} 25. f5 {[%clk 00:22:17]}
{[%emt 00:03:30]} Bb7 {[%clk 00:18:04]} {[%emt 00:01:22]} 26. Nd5 {[%clk
00:21:15]} {[%emt 00:01:31]} Bxd5 {[%clk 00:15:20]} {[%emt 00:03:15]} 27. Rxd5
{[%clk 00:21:40]} {[%emt 00:00:04]} Nf6 {[%clk 00:13:14]} {[%emt 00:02:37]} 28.
Rdd1 {[%clk 00:21:56]} {[%emt 00:00:14]} h6 {[%clk 00:10:55]} {[%emt 00:02:49]}
29. Bb1 {[%clk 00:19:08]} {[%emt 00:03:18]} Rxc1 {[%clk 00:10:50]} {[%emt
00:00:35]} 30. Bxc1 {[%clk 00:15:59]} {[%emt 00:03:39]} Qc6 {[%clk 00:09:23]}
{[%emt 00:01:57]} 31. Bb2 {[%clk 00:15:55]} {[%emt 00:00:33]} Rc8 {[%clk
00:08:59]} {[%emt 00:00:54]} 32. Bd3 {[%clk 00:15:29]} {[%emt 00:00:56]} Bd8
{[%clk 00:06:30]} {[%emt 00:03:00]} 33. h3 {[%clk 00:14:25]} {[%emt 00:01:34]}
Bb6+ {[%clk 00:05:25]} {[%emt 00:01:36]} 34. Kh2 {[%clk 00:14:52]} {[%emt
00:00:01]} Bd4 {[%clk 00:05:45]} {[%emt 00:00:10]} 35. a4 {[%clk 00:09:31]}
{[%emt 00:05:51]} Bxb2 {[%clk 00:05:55]} {[%emt 00:00:20]} 36. axb5 {[%clk
00:09:07]} {[%emt 00:00:54]} axb5 {[%clk 00:04:50]} {[%emt 00:01:35]} 37. Qxb2
{[%clk 00:09:29]} {[%emt 00:00:08]} Nxe4 {[%clk 00:05:00]} {[%emt 00:00:20]}
0-1